fUSD/lending_fUSD_20240213
["ID","MTS","AMOUNT","RATE_DAILY","PERIOD"]
[313943295,1707844287103,-500.0,0.00030136,2]
[313943296,1707844287113,-218.79,0.00030136,2]
[313943297,1707844287123,-629.55,0.00030136,2]
[313943298,1707844287134,-160.58,0.00030136,2]
[313943299,1707844287145,-500.0,0.00030136,2]
[313943300,1707844287155,-349.79,0.00030136,2]
[313943301,1707844287165,-500.0,0.00030136,2]
[313943302,1707844287174,-500.0,0.00030136,2]
[313943303,1707844287189,-500.0,0.00030136,2]
[313943304,1707844287199,-500.0,0.00030136,2]
[313943305,1707844287210,-500.0,0.00030136,2]
[313943306,1707844287220,-858.16,0.00030136,2]
[313943307,1707844287230,-500.0,0.00030136,2]
[313943308,1707844287240,-500.0,0.00030136,2]
[313943309,1707844287250,-3042.48,0.00030136,2]
[313943310,1707844287260,-552.26,0.00030136,2]
[313943311,1707844287270,-1415.52,0.00030136,2]
[313943312,1707844287280,-500.0,0.00030136,2]
[313943313,1707844287291,-500.0,0.00030136,2]
[313943314,1707844287301,-1038.84,0.00030136,2]
[313943315,1707844287311,-500.0,0.00030136,2]
[313943316,1707844287321,-500.0,0.00030136,2]
[313943317,1707844287332,-500.0,0.00030136,2]
[313943318,1707844287341,-500.0,0.00030136,2]
[313943319,1707844287351,-500.0,0.00030136,2]
[313943320,1707844287364,-500.0,0.00030136,2]
[313943321,1707844287373,-1247.85,0.00030136,2]
[313943322,1707844287383,-500.0,0.00030136,2]
[313943323,1707844287393,-248.45,0.00030136,2]
[313943324,1707844287402,-500.0,0.00030136,2]
[313943325,1707844287413,-500.0,0.00030136,2]
[313943326,1707844287422,-500.0,0.00030136,2]
[313943327,1707844287437,-500.0,0.00030136,2]
[313943328,1707844287448,-446.07715458,0.00030136,2]
[313943329,1707844287457,-790.24,0.00030136,2]
[313943330,1707844287466,-2805.34,0.00030136,2]
[313943331,1707844287476,-500.0,0.00030136,2]
[313943332,1707844287486,-500.0,0.00030136,2]
[313943333,1707844287495,-500.0,0.00030136,2]
[313943334,1707844287505,-1697.28,0.00030136,2]
[313943335,1707844287514,-500.0,0.00030136,2]
[313943336,1707844287523,-500.0,0.00030136,2]
[313943337,1707844287533,-500.0,0.00030136,2]
[313943338,1707844287543,-2116.33,0.00030136,2]
[313943339,1707844287552,-549.56,0.00030136,2]
[313943340,1707844287562,-500.0,0.00030136,2]
[313943341,1707844287571,-500.0,0.00030136,2]
[313943342,1707844287580,-500.0,0.00030136,2]
[313943343,1707844287590,-500.0,0.00030136,2]
[313943344,1707844287599,-500.0,0.00030136,2]
[313943345,1707844287608,-500.0,0.00030136,2]
[313943346,1707844287617,-500.0,0.00030136,2]
[313943347,1707844287627,-500.0,0.00030136,2]
[313943348,1707844287636,-500.0,0.00030136,2]
[313943349,1707844287646,-1175.54,0.00030136,2]
[313943350,1707844287656,-255.47,0.00030136,2]
[313943351,1707844287665,-500.0,0.00030136,2]
[313943352,1707844287674,-759.92,0.00030136,2]
[313943353,1707844287686,-261.06,0.00030136,2]
[313943354,1707844287695,-546.2,0.00030136,2]
[313943355,1707844287705,-373.52,0.00030136,2]
[313943356,1707844287714,-500.0,0.00030136,2]
[313943357,1707844287723,-751.2,0.00030136,2]
[313943358,1707844287732,-500.0,0.00030136,2]
[313943359,1707844287742,-500.0,0.00030136,2]
[313943360,1707844287751,-1788.82,0.00030136,2]
[313943361,1707844287761,-875.2,0.00030136,2]
[313943362,1707844287770,-178.52,0.00030136,2]
[313943363,1707844287779,-500.0,0.00030136,2]
[313943364,1707844287788,-1080.3,0.00030136,2]
[313943365,1707844287797,-503.9,0.00030136,2]
[313943366,1707844287807,-550.99443612,0.00030136,2]
[313943367,1707844287816,-506.8,0.00030136,2]
[313943368,1707844287825,-900.51,0.00030136,2]
[313943369,1707844287835,-181.64339242,0.00030136,2]
[313943370,1707844287844,-500.0,0.00030136,2]
[313943371,1707844287853,-630.01,0.00030136,2]
[313943372,1707844287862,-610.21,0.00030136,2]
[313943373,1707844287871,-500.0,0.00030136,2]
[313943374,1707844287881,-500.0,0.00030136,2]
[313943375,1707844287890,-500.0,0.00030136,2]
[313943376,1707844287899,-500.0,0.00030136,2]
[313943377,1707844287908,-500.0,0.00030136,2]
[313943378,1707844287918,-500.0,0.00030136,2]
[313943379,1707844287928,-500.0,0.00030136,2]
[313943380,1707844287937,-3980.59,0.00030136,2]
[313943381,1707844287947,-445.4369916,0.00030136,2]
[313943382,1707844287956,-517.81,0.00030136,2]
[313943383,1707844287965,-304.82000564,0.00030136,2]
[313943384,1707844287974,-500.0,0.00030136,2]
[313943385,1707844287983,-1284.81,0.00030136,2]
[313943386,1707844287992,-150.27,0.00030137,2]
[313943387,1707844288002,-1441.77,0.00030195,2]
[313943388,1707844288011,-2930.43053173,0.00030282,2]
[313943389,1707844288021,-607.17661814,0.0003041,2]
[313943390,1707844288030,-500.0,0.0003041,2]
[313943391,1707844288039,-370.57,0.0003041,2]
[313943392,1707844288051,-500.0,0.0003041,2]
[313943393,1707844288061,-500.0,0.0003041,2]
[313943394,1707844288070,-500.0,0.0003041,2]
[313943395,1707844288079,-500.0,0.0003041,2]
[313943396,1707844288088,-500.0,0.0003041,2]
[313943397,1707844288097,-209.85669132,0.0003041,2]
[313943398,1707844288106,-500.0,0.0003041,2]
[313943399,1707844288116,-500.0,0.0003041,2]
[313943400,1707844288124,-500.0,0.0003041,2]
[313943401,1707844288134,-500.0,0.0003041,2]
[313943402,1707844288145,-500.0,0.0003041,2]
[313943403,1707844288154,-533.51,0.0003041,2]
[313943404,1707844288163,-569.82,0.0003041,2]
[313943405,1707844288172,-500.0,0.0003041,2]
[313943406,1707844288182,-500.0,0.0003041,2]
[313943407,1707844288191,-500.0,0.0003041,2]
[313943408,1707844288200,-1934.6,0.0003041,2]
[313943409,1707844288210,-796.91,0.0003041,2]
[313943410,1707844288219,-500.0,0.0003041,2]
[313943411,1707844288229,-500.0,0.0003041,2]
[313943412,1707844288238,-500.0,0.0003041,2]
[313943413,1707844288247,-422.51,0.0003041,2]
[313943414,1707844288256,-500.0,0.0003041,2]
[313943415,1707844288265,-500.0,0.0003041,2]
[313943416,1707844288274,-570.36,0.0003041,2]
[313943417,1707844288284,-500.0,0.0003041,2]
[313943418,1707844288293,-382.01588378,0.0003041,2]
[313943419,1707844288302,-500.0,0.0003041,2]
[313943420,1707844288311,-500.0,0.0003041,2]
[313943421,1707844288320,-500.0,0.0003041,2]
[313943422,1707844288329,-500.0,0.0003041,2]
[313943423,1707844288338,-500.0,0.0003041,2]
[313943424,1707844288347,-500.0,0.0003041,2]
[313943425,1707844288357,-500.0,0.0003041,2]
[313943426,1707844288365,-374.84,0.0003041,2]
[313943427,1707844288374,-500.0,0.0003041,2]
[313943428,1707844288383,-500.0,0.0003041,2]
[313943429,1707844288392,-192.39748696,0.0003041,2]
[313943430,1707844288401,-500.0,0.0003041,2]
[313943431,1707844288410,-500.0,0.0003041,2]
[313943432,1707844288419,-154.23,0.0003041,2]
[313943433,1707844288428,-500.0,0.0003041,2]
[313943434,1707844288437,-500.0,0.0003041,2]
[313943435,1707844288446,-283.79,0.0003041,2]
[313943436,1707844288456,-500.0,0.0003041,2]
[313943437,1707844288465,-540.54,0.0003041,2]
[313943438,1707844288474,-500.0,0.0003041,2]
[313943439,1707844288482,-500.0,0.0003041,2]
[313943440,1707844288491,-500.0,0.0003041,2]
[313943441,1707844288500,-502.25,0.0003041,2]
[313943442,1707844288509,-500.0,0.0003041,2]
[313943443,1707844288518,-417.81,0.0003041,2]
[313943444,1707844288527,-343.58,0.0003041,2]
[313943445,1707844288536,-1707.88,0.0003041,2]
[313943446,1707844288545,-500.0,0.0003041,2]
[313943447,1707844288554,-708.66,0.0003041,2]
[313943448,1707844288562,-1697.57,0.0003041,2]
[313943449,1707844288571,-1398.01,0.0003041,2]
[313943450,1707844288580,-500.0,0.0003041,2]
[313943451,1707844288589,-500.0,0.0003041,2]
[313943452,1707844288597,-2373.55,0.0003041,2]
[313943453,1707844288606,-500.0,0.0003041,2]
[313943454,1707844288615,-500.0,0.0003041,2]
[313943455,1707844288623,-750.3,0.0003041,2]
[313943456,1707844288632,-500.0,0.0003041,2]
[313943457,1707844288641,-500.0,0.0003041,2]
[313943458,1707844288650,-500.0,0.0003041,2]
[313943459,1707844288659,-502.3,0.0003041,2]
[313943460,1707844288667,-537.7,0.0003041,2]
[313943461,1707844288676,-668.93,0.0003041,2]
[313943462,1707844288685,-500.0,0.0003041,2]
[313943463,1707844288694,-720.34,0.0003041,2]
[313943464,1707844288703,-500.0,0.0003041,2]
[313943465,1707844288712,-500.0,0.0003041,2]
[313943466,1707844288721,-615.8,0.0003041,2]
[313943467,1707844288730,-500.0,0.0003041,2]
[313943468,1707844288739,-500.0,0.0003041,2]
[313943469,1707844288749,-374.56,0.0003041,2]
[313943470,1707844288757,-500.0,0.0003041,2]
[313943471,1707844288766,-500.0,0.0003041,2]
[313943472,1707844288775,-500.0,0.0003041,2]
[313943473,1707844288785,-2732.31,0.0003041,2]
[313943474,1707844288794,-500.0,0.0003041,2]
[313943475,1707844288803,-500.0,0.0003041,2]
[313943476,1707844288813,-500.0,0.0003041,2]
[313943477,1707844288822,-500.0,0.0003041,2]
[313943478,1707844288831,-500.0,0.0003041,2]
[313943479,1707844288840,-500.0,0.0003041,2]
[313943480,1707844288849,-1017.52,0.0003041,2]
[313943481,1707844288859,-830.13,0.0003041,2]
[313943482,1707844288868,-972.43,0.0003041,2]
[313943483,1707844288877,-500.0,0.0003041,2]
[313943484,1707844288886,-500.0,0.0003041,2]
[313943485,1707844288896,-500.0,0.0003041,2]
[313943486,1707844288905,-539.37,0.0003041,2]
[313943487,1707844288915,-500.0,0.0003041,2]
[313943488,1707844288925,-500.0,0.0003041,2]
[313943489,1707844288939,-868.91,0.0003041,2]
[313943490,1707844288948,-500.0,0.0003041,2]
[313943491,1707844288957,-525.01,0.0003041,2]
[313943492,1707844288967,-500.0,0.0003041,2]
[313943493,1707844288976,-500.0,0.0003041,2]
[313943494,1707844288985,-629.55,0.0003041,2]
[313943495,1707844288995,-500.0,0.0003041,2]
[313943496,1707844289004,-500.0,0.0003041,2]
[313943497,1707844289014,-500.0,0.0003041,2]
[313943498,1707844289023,-605.29,0.0003041,2]
[313943499,1707844289033,-500.0,0.0003041,2]
[313943500,1707844289044,-858.16,0.0003041,2]
[313943501,1707844289053,-500.0,0.0003041,2]
[313943502,1707844289065,-500.0,0.0003041,2]
[313943503,1707844289075,-3042.48,0.0003041,2]
[313943504,1707844289085,-552.26,0.0003041,2]
[313943505,1707844289095,-1415.52,0.0003041,2]
[313943506,1707844289105,-500.0,0.0003041,2]
[313943507,1707844289114,-500.0,0.0003041,2]
[313943508,1707844289125,-1038.84,0.0003041,2]
[313943509,1707844289135,-500.0,0.0003041,2]
[313943510,1707844289146,-500.0,0.0003041,2]
[313943511,1707844289156,-327.01,0.0003041,2]
[313943512,1707844289165,-500.0,0.0003041,2]
[313943513,1707844289174,-344.19,0.0003041,2]
[313943514,1707844289186,-500.0,0.0003041,2]
[313943515,1707844289196,-1247.85,0.0003041,2]
[313943516,1707844289205,-500.0,0.0003041,2]
[313943517,1707844289215,-500.0,0.0003041,2]
[313943518,1707844289225,-500.0,0.0003041,2]
[313943519,1707844289235,-500.0,0.0003041,2]
[313943520,1707844289248,-500.0,0.0003041,2]
[313943521,1707844289257,-790.24,0.0003041,2]
[313943522,1707844289267,-2805.34,0.0003041,2]
[313943523,1707844289277,-500.0,0.0003041,2]
[313943524,1707844289287,-500.0,0.0003041,2]
[313943525,1707844289296,-1697.28,0.0003041,2]
[313943526,1707844289306,-500.0,0.0003041,2]
[313943527,1707844289316,-525.37218114,0.0003041,2]
[313943528,1707844289326,-500.0,0.0003041,2]
[313943529,1707844289335,-2116.33,0.0003041,2]
[313943530,1707844289346,-549.56,0.0003041,2]
[313943531,1707844289355,-500.0,0.0003041,2]
[313943532,1707844289365,-500.0,0.0003041,2]
[313943533,1707844289374,-500.0,0.0003041,2]
[313943534,1707844289384,-500.0,0.0003041,2]
[313943535,1707844289393,-500.0,0.0003041,2]
[313943536,1707844289403,-500.0,0.0003041,2]
[313943537,1707844289413,-500.0,0.0003041,2]
[313943538,1707844289422,-500.0,0.0003041,2]
[313943539,1707844289434,-500.0,0.0003041,2]
[313943540,1707844289444,-1175.54,0.0003041,2]
[313943541,1707844289454,-500.0,0.0003041,2]
[313943542,1707844289463,-759.92,0.0003041,2]
[313943543,1707844289472,-546.2,0.0003041,2]
[313943544,1707844289482,-500.0,0.0003041,2]
[313943545,1707844289491,-751.2,0.0003041,2]
[313943546,1707844289501,-500.0,0.0003041,2]
[313943547,1707844289510,-500.0,0.0003041,2]
[313943548,1707844289519,-1788.82,0.0003041,2]
[313943549,1707844289529,-875.2,0.0003041,2]
[313943550,1707844289538,-500.0,0.0003041,2]
[313943551,1707844289547,-1080.3,0.0003041,2]
[313943552,1707844289557,-503.9,0.0003041,2]
[313943553,1707844289566,-900.51,0.0003041,2]
[313943554,1707844289575,-500.0,0.0003041,2]
[313943555,1707844289584,-630.01,0.0003041,2]
[313943556,1707844289593,-610.21,0.0003041,2]
[313943557,1707844289602,-500.0,0.0003041,2]
[313943558,1707844289611,-500.0,0.0003041,2]
[313943559,1707844289621,-500.0,0.0003041,2]
[313943560,1707844289631,-500.0,0.0003041,2]
[313943561,1707844289641,-500.0,0.0003041,2]
[313943562,1707844289650,-500.0,0.0003041,2]
[313943563,1707844289660,-500.0,0.0003041,2]
[313943564,1707844289669,-3980.59,0.0003041,2]
[313943565,1707844289680,-517.81,0.0003041,2]
[313943566,1707844289689,-500.0,0.0003041,2]
[313943567,1707844289700,-1284.81,0.0003041,2]
[313943568,1707844289709,-670.81687603,0.00030489,2]
[313943569,1707844289719,-341.42,0.00030558,2]
[313943570,1707844289728,-151.0,0.00030628,120]
[313943571,1707844289737,-1015.7477574,0.00030674,2]
[313943572,1707844289746,-757.23370833,0.00030674,2]
[313943573,1707844289756,-500.0,0.00030684,2]
[313943574,1707844289765,-500.0,0.00030684,2]
[313943575,1707844289775,-500.0,0.00030684,2]
[313943576,1707844289784,-500.0,0.00030684,2]
[313943577,1707844289793,-500.0,0.00030684,2]
[313943578,1707844289802,-500.0,0.00030684,2]
[313943579,1707844289811,-500.0,0.00030684,2]
[313943580,1707844289820,-500.0,0.00030684,2]
[313943581,1707844289829,-500.0,0.00030684,2]
[313943582,1707844289839,-500.0,0.00030684,2]
[313943583,1707844289848,-500.0,0.00030684,2]
[313943584,1707844289857,-500.0,0.00030684,2]
[313943585,1707844289866,-500.0,0.00030684,2]
[313943586,1707844289875,-1934.6,0.00030684,2]
[313943587,1707844289885,-796.91,0.00030684,2]
[313943588,1707844289894,-500.0,0.00030684,2]
[313943589,1707844289903,-500.0,0.00030684,2]
[313943590,1707844289912,-500.0,0.00030684,2]
[313943591,1707844289922,-440.66,0.00030684,2]
[313943592,1707844289933,-500.0,0.00030684,2]
[313943593,1707844289942,-500.0,0.00030684,2]
[313943594,1707844289951,-500.0,0.00030684,2]
[313943595,1707844289961,-500.0,0.00030684,2]
[313943596,1707844289970,-500.0,0.00030684,2]
[313943597,1707844289979,-500.0,0.00030684,2]
[313943598,1707844289988,-500.0,0.00030684,2]
[313943599,1707844289997,-500.0,0.00030684,2]
[313943600,1707844290006,-500.0,0.00030684,2]
[313943601,1707844290016,-500.0,0.00030684,2]
[313943602,1707844290025,-500.0,0.00030684,2]
[313943603,1707844290168,-500.0,0.00030684,2]
[313943604,1707844290178,-500.0,0.00030684,2]
[313943605,1707844290186,-500.0,0.00030684,2]
[313943606,1707844290195,-500.0,0.00030684,2]
[313943607,1707844290204,-171.11,0.00030684,2]
[313943608,1707844290213,-540.54,0.00030684,2]
[313943609,1707844290223,-500.0,0.00030684,2]
[313943610,1707844290232,-183.35,0.00030684,2]
[313943611,1707844290241,-500.0,0.00030684,2]
[313943612,1707844290251,-502.25,0.00030684,2]
[313943613,1707844290261,-500.0,0.00030684,2]
[313943614,1707844290270,-1707.88,0.00030684,2]
[313943615,1707844290280,-500.0,0.00030684,2]
[313943616,1707844290289,-708.66,0.00030684,2]
[313943617,1707844290299,-1697.57,0.00030684,2]
[313943618,1707844290309,-1398.01,0.00030684,2]
[313943619,1707844290318,-500.0,0.00030684,2]
[313943620,1707844290329,-500.0,0.00030684,2]
[313943621,1707844290338,-2373.55,0.00030684,2]
[313943622,1707844290347,-500.0,0.00030684,2]
[313943623,1707844290357,-500.0,0.00030684,2]
[313943624,1707844290366,-750.3,0.00030684,2]
[313943625,1707844290375,-500.0,0.00030684,2]
[313943626,1707844290384,-500.0,0.00030684,2]
[313943627,1707844290393,-500.0,0.00030684,2]
[313943628,1707844290402,-502.3,0.00030684,2]
[313943629,1707844290412,-537.7,0.00030684,2]
[313943630,1707844290421,-668.93,0.00030684,2]
[313943631,1707844290430,-500.0,0.00030684,2]
[313943632,1707844290438,-720.34,0.00030684,2]
[313943633,1707844290447,-500.0,0.00030684,2]
[313943634,1707844290456,-500.0,0.00030684,2]
[313943635,1707844290465,-615.8,0.00030684,2]
[313943636,1707844290474,-500.0,0.00030684,2]
[313943637,1707844290482,-500.0,0.00030684,2]
[313943638,1707844290492,-500.0,0.00030684,2]
[313943639,1707844290501,-500.0,0.00030684,2]
[313943640,1707844290510,-500.0,0.00030684,2]
[313943641,1707844290519,-2732.31,0.00030684,2]
[313943642,1707844290528,-500.0,0.00030684,2]
[313943643,1707844290537,-500.0,0.00030684,2]
[313943644,1707844290546,-500.0,0.00030684,2]
[313943645,1707844290555,-500.0,0.00030684,2]
[313943646,1707844290565,-500.0,0.00030684,2]
[313943647,1707844290574,-500.0,0.00030684,2]
[313943648,1707844290583,-1017.52,0.00030684,2]
[313943649,1707844290593,-830.13,0.00030684,2]
[313943650,1707844290602,-972.43,0.00030684,2]
[313943651,1707844290611,-500.0,0.00030684,2]
[313943652,1707844290620,-500.0,0.00030684,2]
[313943653,1707844290630,-500.0,0.00030684,2]
[313943654,1707844290639,-539.37,0.00030684,2]
[313943655,1707844290648,-500.0,0.00030684,2]
[313943656,1707844290657,-500.0,0.00030684,2]
[313943657,1707844290667,-868.91,0.00030684,2]
[313943658,1707844290676,-500.0,0.00030684,2]
[313943659,1707844290686,-525.01,0.00030684,2]
[313943660,1707844290695,-500.0,0.00030684,2]
[313943661,1707844290705,-500.0,0.00030684,2]
[313943662,1707844290714,-629.55,0.00030684,2]
[313943663,1707844290724,-500.0,0.00030684,2]
[313943664,1707844290733,-500.0,0.00030684,2]
[313943665,1707844290743,-500.0,0.00030684,2]
[313943666,1707844290752,-858.16,0.00030684,2]
[313943667,1707844290761,-500.0,0.00030684,2]
[313943668,1707844290770,-500.0,0.00030684,2]
[313943669,1707844290780,-3042.48,0.00030684,2]
[313943670,1707844290789,-552.26,0.00030684,2]
[313943671,1707844290798,-1415.52,0.00030684,2]
[313943672,1707844290807,-500.0,0.00030684,2]
[313943673,1707844290817,-500.0,0.00030684,2]
[313943674,1707844290827,-1038.84,0.00030684,2]
[313943675,1707844290836,-500.0,0.00030684,2]
[313943676,1707844290845,-500.0,0.00030684,2]
[313943677,1707844290855,-500.0,0.00030684,2]
[313943678,1707844290864,-500.0,0.00030684,2]
[313943679,1707844290874,-1247.85,0.00030684,2]
[313943680,1707844290883,-500.0,0.00030684,2]
[313943681,1707844290892,-500.0,0.00030684,2]
[313943682,1707844290901,-500.0,0.00030684,2]
[313943683,1707844290911,-500.0,0.00030684,2]
[313943684,1707844290920,-500.0,0.00030684,2]
[313943685,1707844290930,-790.24,0.00030684,2]
[313943686,1707844290939,-2805.34,0.00030684,2]
[313943687,1707844290949,-500.0,0.00030684,2]
[313943688,1707844290959,-520.61,0.00030684,2]
[313943689,1707844290968,-1697.28,0.00030684,2]
[313943690,1707844290978,-500.0,0.00030684,2]
[313943691,1707844290987,-500.0,0.00030684,2]
[313943692,1707844290996,-2116.33,0.00030684,2]
[313943693,1707844291006,-549.56,0.00030684,2]
[313943694,1707844291015,-500.0,0.00030684,2]
[313943695,1707844291025,-500.0,0.00030684,2]
[313943696,1707844291035,-278.0,0.00030684,2]
[313943697,1707844291045,-500.0,0.00030684,2]
[313943698,1707844291054,-500.0,0.00030684,2]
[313943699,1707844291065,-500.0,0.00030684,2]
[313943700,1707844291076,-500.0,0.00030684,2]
[313943701,1707844291086,-500.0,0.00030684,2]
[313943702,1707844291095,-189.88808586,0.00030684,2]
[313943703,1707844291106,-1175.54,0.00030684,2]
[313943704,1707844291115,-500.0,0.00030684,2]
[313943705,1707844291124,-759.92,0.00030684,2]
[313943706,1707844291133,-546.2,0.00030684,2]
[313943707,1707844291143,-438.01,0.00030684,2]
[313943708,1707844291152,-751.2,0.00030684,2]
[313943709,1707844291161,-500.0,0.00030684,2]
[313943710,1707844291171,-500.0,0.00030684,2]
[313943711,1707844291181,-1788.82,0.00030684,2]
[313943712,1707844291191,-875.2,0.00030684,2]
[313943713,1707844291201,-500.0,0.00030684,2]
[313943714,1707844291210,-1080.3,0.00030684,2]
[313943715,1707844291219,-503.9,0.00030684,2]
[313943716,1707844291229,-900.51,0.00030684,2]
[313943717,1707844291241,-500.0,0.00030684,2]
[313943718,1707844291250,-630.01,0.00030684,2]
[313943719,1707844291259,-610.21,0.00030684,2]
[313943720,1707844291269,-500.0,0.00030684,2]
[313943721,1707844291279,-500.0,0.00030684,2]
[313943722,1707844291288,-500.0,0.00030684,2]
[313943723,1707844291298,-500.0,0.00030684,2]
[313943724,1707844291307,-500.0,0.00030684,2]
[313943725,1707844291316,-500.0,0.00030684,2]
[313943726,1707844291327,-500.0,0.00030684,2]
[313943727,1707844291338,-3980.59,0.00030684,2]
[313943728,1707844291348,-517.81,0.00030684,2]
[313943729,1707844291358,-500.0,0.00030684,2]
[313943730,1707844291368,-1284.81,0.00030684,2]
[313943731,1707844291377,-2930.43053173,0.00030698,2]
[313943732,1707844291387,-6663.0,0.000307,5]
[313943733,1707844291399,-1000.0,0.000307,2]
[313943734,1707844291409,-375.60551747,0.00030724,18]
[313943735,1707844291419,-153.36,0.000308,2]
[313943736,1707844291429,-3000.0,0.000308,2]
[313943737,1707844291439,-327.68,0.00030958,2]
[313943738,1707844291450,-500.0,0.00030958,2]
[313943739,1707844291459,-500.0,0.00030958,2]
[313943740,1707844291469,-547.23,0.00030958,2]
[313943741,1707844291478,-307.95559563,0.00030958,2]
[313943742,1707844291489,-500.0,0.00030958,2]
[313943743,1707844291498,-500.0,0.00030958,2]
[313943744,1707844291508,-333.8696394,0.00030958,2]
[313943745,1707844291518,-500.0,0.00030958,2]
[313943746,1707844291527,-500.0,0.00030958,2]
[313943747,1707844291537,-500.0,0.00030958,2]
[313943748,1707844291547,-500.0,0.00030958,2]
[313943749,1707844291556,-1934.6,0.00030958,2]
[313943750,1707844291565,-796.91,0.00030958,2]
[313943751,1707844291574,-500.0,0.00030958,2]
[313943752,1707844291583,-415.84,0.00030958,2]
[313943753,1707844291593,-500.0,0.00030958,2]
[313943754,1707844291602,-500.0,0.00030958,2]
[313943755,1707844291611,-428.18,0.00030958,2]
[313943756,1707844291621,-500.0,0.00030958,2]
[313943757,1707844291631,-446.45,0.00030958,2]
[313943758,1707844291640,-500.0,0.00030958,2]
[313943759,1707844291650,-500.0,0.00030958,2]
[313943760,1707844291659,-500.0,0.00030958,2]
[313943761,1707844291668,-500.0,0.00030958,2]
[313943762,1707844291677,-175.67,0.00030958,2]
[313943763,1707844291688,-500.0,0.00030958,2]
[313943764,1707844291698,-356.61,0.00030958,2]
[313943765,1707844291707,-500.0,0.00030958,2]
[313943766,1707844291716,-500.0,0.00030958,2]
[313943767,1707844291726,-500.0,0.00030958,2]
[313943768,1707844291735,-500.0,0.00030958,2]
[313943769,1707844291744,-540.54,0.00030958,2]
[313943770,1707844291754,-500.0,0.00030958,2]
[313943771,1707844291763,-500.0,0.00030958,2]
[313943772,1707844291773,-502.25,0.00030958,2]
[313943773,1707844291782,-500.0,0.00030958,2]
[313943774,1707844291791,-1707.88,0.00030958,2]
[313943775,1707844291800,-500.0,0.00030958,2]
[313943776,1707844291809,-708.66,0.00030958,2]
[313943777,1707844291818,-1697.57,0.00030958,2]
[313943778,1707844291829,-1398.01,0.00030958,2]
[313943779,1707844291838,-500.0,0.00030958,2]
[313943780,1707844291847,-500.0,0.00030958,2]
[313943781,1707844291856,-2373.55,0.00030958,2]
[313943782,1707844291865,-500.0,0.00030958,2]
[313943783,1707844291875,-500.0,0.00030958,2]
[313943784,1707844291884,-750.3,0.00030958,2]
[313943785,1707844291893,-172.77,0.00030958,2]
[313943786,1707844291903,-500.0,0.00030958,2]
[313943787,1707844291912,-500.0,0.00030958,2]
[313943788,1707844291921,-502.3,0.00030958,2]
[313943789,1707844291931,-668.93,0.00030958,2]
[313943790,1707844291940,-537.7,0.00030958,2]
[313943791,1707844291949,-500.0,0.00030958,2]
[313943792,1707844291959,-720.34,0.00030958,2]
[313943793,1707844291968,-500.0,0.00030958,2]
[313943794,1707844291977,-500.0,0.00030958,2]